[Event "Late-Titled-Tuesday-Blitz-April-30-2024"]
[Site "Chess.com"]
[Date "2024.04.30"]
[Round "11"]
[White "mightysmasher"]
[Black "Abund"]
[Result "0-1"]
[WhiteElo "2540"]
[BlackElo "2759"]
[TimeControl "180+1"]
[EndTime "16:06:34 PDT"]
[Termination "Abund won on time"]

1. e4 {[%clk 0:03:00.9]} 1... g6 {[%clk 0:03:00.2]} 2. d4 {[%clk 0:03:00]} 2...
Bg7 {[%clk 0:03:00.7]} 3. Nf3 {[%clk 0:03:00.6]} 3... a6 {[%clk 0:02:59.5]} 4.
c4 {[%clk 0:02:57.9]} 4... c6 {[%clk 0:02:46.5]} 5. Nc3 {[%clk 0:02:57.8]} 5...
d5 {[%clk 0:02:42.8]} 6. exd5 {[%clk 0:02:57]} 6... cxd5 {[%clk 0:02:40.3]} 7.
Be2 {[%clk 0:02:53.5]} 7... Nf6 {[%clk 0:02:38.1]} 8. O-O {[%clk 0:02:53]} 8...
O-O {[%clk 0:02:32.3]} 9. Be3 {[%clk 0:02:51]} 9... Nc6 {[%clk 0:02:32.2]} 10.
Rc1 {[%clk 0:02:49.5]} 10... dxc4 {[%clk 0:02:30.4]} 11. Bxc4 {[%clk 0:02:48.9]}
11... b5 {[%clk 0:02:30.3]} 12. Be2 {[%clk 0:02:47.3]} 12... Bb7 {[%clk
0:02:28.2]} 13. Ne5 {[%clk 0:02:42.3]} 13... Nb4 {[%clk 0:02:06.5]} 14. a3
{[%clk 0:02:36.7]} 14... Nbd5 {[%clk 0:02:06.6]} 15. Nxd5 {[%clk 0:02:34.4]}
15... Nxd5 {[%clk 0:02:04.4]} 16. Nd3 {[%clk 0:02:30.1]} 16... Qb6 {[%clk
0:01:45.9]} 17. Nc5 {[%clk 0:02:28.1]} 17... Nxe3 {[%clk 0:01:37]} 18. fxe3
{[%clk 0:02:23.8]} 18... Rad8 {[%clk 0:01:37.2]} 19. Nxb7 {[%clk 0:02:18.7]}
19... Qxb7 {[%clk 0:01:37.3]} 20. Qb3 {[%clk 0:02:17.2]} 20... e5 {[%clk
0:01:27.2]} 21. Bf3 {[%clk 0:02:11.3]} 21... Qe7 {[%clk 0:01:26]} 22. dxe5
{[%clk 0:02:05.2]} 22... Bxe5 {[%clk 0:01:17.2]} 23. Bd5 {[%clk 0:01:55.3]}
23... Bxh2+ {[%clk 0:01:10.7]} 24. Kxh2 {[%clk 0:01:50.3]} 24... Qe5+ {[%clk
0:01:11]} 25. Kg1 {[%clk 0:01:48.3]} 25... Rxd5 {[%clk 0:01:10.8]} 26. Rc6
{[%clk 0:01:45.7]} 26... Rd2 {[%clk 0:01:03.5]} 27. Qc3 {[%clk 0:01:27.8]} 27...
Qxc3 {[%clk 0:00:57.4]} 28. bxc3 {[%clk 0:01:27]} 28... Rd3 {[%clk 0:00:47.2]}
29. Rxa6 {[%clk 0:01:25.8]} 29... Rxc3 {[%clk 0:00:46.1]} 30. Rf3 {[%clk
0:01:23]} 30... Rc7 {[%clk 0:00:32.8]} 31. Rb6 {[%clk 0:01:16]} 31... Ra8 {[%clk
0:00:32.9]} 32. e4 {[%clk 0:01:15.8]} 32... Ra4 {[%clk 0:00:27.5]} 33. e5 {[%clk
0:01:13.7]} 33... Re7 {[%clk 0:00:19.6]} 34. Rxb5 {[%clk 0:01:13.3]} 34... Re4
{[%clk 0:00:19.7]} 35. Rb6 {[%clk 0:01:07.6]} 35... R4xe5 {[%clk 0:00:19.1]} 36.
Ra6 {[%clk 0:01:06.8]} 36... Kg7 {[%clk 0:00:18.4]} 37. Kh2 {[%clk 0:01:02.9]}
37... Re2 {[%clk 0:00:18.6]} 38. Kg1 {[%clk 0:01:00.2]} 38... Ra2 {[%clk
0:00:17.6]} 39. Raf6 {[%clk 0:00:58.4]} 39... Ra7 {[%clk 0:00:16.3]} 40. Kh2
{[%clk 0:00:56.6]} 40... Kg8 {[%clk 0:00:15.7]} 41. Kg1 {[%clk 0:00:53.4]} 41...
Rb7 {[%clk 0:00:14.4]} 42. Kh2 {[%clk 0:00:37.1]} 42... Kg7 {[%clk 0:00:12.9]}
43. Kh3 {[%clk 0:00:35.3]} 43... Re7 {[%clk 0:00:12.5]} 44. Kh2 {[%clk
0:00:34.7]} 44... Ra7 {[%clk 0:00:12.7]} 45. Kh3 {[%clk 0:00:32.3]} 45... h5
{[%clk 0:00:10.9]} 46. Kh2 {[%clk 0:00:30.7]} 46... Rc2 {[%clk 0:00:10]} 47. Kh3
{[%clk 0:00:23]} 47... Rc4 {[%clk 0:00:09.7]} 48. Kh2 {[%clk 0:00:22.2]} 48...
Re4 {[%clk 0:00:10]} 49. Kh3 {[%clk 0:00:21.8]} 49... Rea4 {[%clk 0:00:10.1]}
50. Kh2 {[%clk 0:00:21.5]} 50... R4a6 {[%clk 0:00:10.4]} 51. Rxa6 {[%clk
0:00:20.7]} 51... Rxa6 {[%clk 0:00:11.3]} 52. Rb3 {[%clk 0:00:20.7]} 52... Kf6
{[%clk 0:00:10.8]} 53. Kg3 {[%clk 0:00:20.4]} 53... Kg5 {[%clk 0:00:10.1]} 54.
Kf3 {[%clk 0:00:20.8]} 54... Ra4 {[%clk 0:00:08.8]} 55. g3 {[%clk 0:00:20.8]}
55... f5 {[%clk 0:00:08.5]} 56. Kg2 {[%clk 0:00:19.5]} 56... h4 {[%clk
0:00:08.3]} 57. gxh4+ {[%clk 0:00:18.8]} 57... Rxh4 {[%clk 0:00:08.9]} 58. Rg3+
{[%clk 0:00:18.8]} 58... Kf6 {[%clk 0:00:08.8]} 59. Rb3 {[%clk 0:00:18.6]} 59...
Ra4 {[%clk 0:00:08.9]} 60. Rb6+ {[%clk 0:00:17.4]} 60... Kg5 {[%clk 0:00:08.8]}
61. Rb3 {[%clk 0:00:17.8]} 61... Ra8 {[%clk 0:00:05.4]} 62. Rg3+ {[%clk
0:00:17.4]} 62... Kf6 {[%clk 0:00:05.9]} 63. Rb3 {[%clk 0:00:17.8]} 63... g5
{[%clk 0:00:06.2]} 64. Rb6+ {[%clk 0:00:17.3]} 64... Ke5 {[%clk 0:00:05.8]} 65.
Rb5+ {[%clk 0:00:17.7]} 65... Kf6 {[%clk 0:00:05.8]} 66. Rb6+ {[%clk 0:00:17.9]}
66... Kg7 {[%clk 0:00:06.4]} 67. Rb3 {[%clk 0:00:13.9]} 67... Kg6 {[%clk
0:00:05.9]} 68. Kg3 {[%clk 0:00:13]} 68... Ra4 {[%clk 0:00:05.4]} 69. Kg2 {[%clk
0:00:12.8]} 69... g4 {[%clk 0:00:05.3]} 70. Kg3 {[%clk 0:00:10.1]} 70... Kg5
{[%clk 0:00:05.1]} 71. Kg2 {[%clk 0:00:09.4]} 71... Ra8 {[%clk 0:00:04.7]} 72.
Kh2 {[%clk 0:00:08.6]} 72... Rc8 {[%clk 0:00:04.6]} 73. Kg2 {[%clk 0:00:07.5]}
73... Rc2+ {[%clk 0:00:04.8]} 74. Kg1 {[%clk 0:00:06.9]} 74... Ra2 {[%clk
0:00:05.1]} 75. Kh1 {[%clk 0:00:03.4]} 75... f4 {[%clk 0:00:05.3]} 76. Kg1
{[%clk 0:00:04]} 76... g3 {[%clk 0:00:05.6]} 77. Rb8 {[%clk 0:00:02.6]} 77...
Kg4 {[%clk 0:00:05.6]} 78. Kf1 {[%clk 0:00:00.1]} 78... Rxa3 {[%clk 0:00:04.1]}
0-1

[Event "Late-Titled-Tuesday-Blitz-April-30-2024"]
[Site "Chess.com"]
[Date "2024.04.30"]
[Round "11"]
[White "wild3000"]
[Black "ahmedkandiliii"]
[Result "0-1"]
[WhiteElo "2490"]
[BlackElo "2607"]
[TimeControl "180+1"]
[EndTime "16:07:15 PDT"]
[Termination "ahmedkandiliii won on time"]

1. d4 {[%clk 0:02:51]} 1... Nf6 {[%clk 0:02:59.5]} 2. Nf3 {[%clk 0:02:45.5]}
2... g6 {[%clk 0:02:59.7]} 3. g3 {[%clk 0:02:44.5]} 3... Bg7 {[%clk 0:02:59.8]}
4. Bg2 {[%clk 0:02:44.6]} 4... O-O {[%clk 0:03:00]} 5. O-O {[%clk 0:02:44.7]}
5... c5 {[%clk 0:03:00.2]} 6. dxc5 {[%clk 0:02:41.8]} 6... Qc7 {[%clk
0:02:56.1]} 7. Nbd2 {[%clk 0:02:38.6]} 7... Qxc5 {[%clk 0:02:54.4]} 8. Nb3
{[%clk 0:02:38.6]} 8... Qc7 {[%clk 0:02:54.5]} 9. c3 {[%clk 0:02:38.7]} 9... d6
{[%clk 0:02:51.8]} 10. Bg5 {[%clk 0:02:36.7]} 10... Nc6 {[%clk 0:02:51.6]} 11.
Nfd4 {[%clk 0:02:36]} 11... Bd7 {[%clk 0:02:50.7]} 12. Qd2 {[%clk 0:02:35.8]}
12... Rfd8 {[%clk 0:02:45.3]} 13. Bh6 {[%clk 0:02:33.4]} 13... Bh8 {[%clk
0:02:45.3]} 14. Rfe1 {[%clk 0:02:29.6]} 14... a6 {[%clk 0:02:44]} 15. Rad1
{[%clk 0:02:22.9]} 15... Rac8 {[%clk 0:02:44]} 16. h3 {[%clk 0:02:15.3]} 16...
Ne5 {[%clk 0:02:41.6]} 17. Qc1 {[%clk 0:02:10.9]} 17... Nc4 {[%clk 0:02:40.3]}
18. Nd2 {[%clk 0:02:06.8]} 18... b5 {[%clk 0:02:40]} 19. Nxc4 {[%clk 0:02:04.1]}
19... bxc4 {[%clk 0:02:40.9]} 20. e4 {[%clk 0:01:43.7]} 20... Qa5 {[%clk
0:02:38.8]} 21. a3 {[%clk 0:01:42.1]} 21... Ba4 {[%clk 0:02:30.7]} 22. Rd2
{[%clk 0:01:41.7]} 22... Nd7 {[%clk 0:02:29.6]} 23. Nf3 {[%clk 0:01:34]} 23...
Nc5 {[%clk 0:02:27.8]} 24. Rd5 {[%clk 0:01:33.1]} 24... Qc7 {[%clk 0:02:17.7]}
25. Bf1 {[%clk 0:01:27.8]} 25... Bc6 {[%clk 0:02:12.9]} 26. Rdd1 {[%clk
0:01:20.3]} 26... Bxe4 {[%clk 0:02:11.1]} 27. Nd4 {[%clk 0:01:18.3]} 27... Bd3
{[%clk 0:02:05.6]} 28. Bg2 {[%clk 0:01:16.7]} 28... e5 {[%clk 0:02:01.8]} 29.
Nc2 {[%clk 0:01:12.4]} 29... Nb3 {[%clk 0:01:59.8]} 30. Qb1 {[%clk 0:01:12.4]}
30... Qd7 {[%clk 0:01:54.4]} 31. Rxd3 {[%clk 0:01:05.9]} 31... cxd3 {[%clk
0:01:54.4]} 32. Nb4 {[%clk 0:01:06]} 32... d2 {[%clk 0:01:50.1]} 33. Rd1 {[%clk
0:01:05.9]} 33... a5 {[%clk 0:01:44.7]} 34. Nd5 {[%clk 0:01:02.2]} 34... Qe6
{[%clk 0:01:26.4]} 35. a4 {[%clk 0:00:51.7]} 35... Bg7 {[%clk 0:01:24]} 36. Bxd2
{[%clk 0:00:46.2]} 36... Nxd2 {[%clk 0:01:22.6]} 37. Rxd2 {[%clk 0:00:47.1]}
37... Rb8 {[%clk 0:01:21]} 38. b4 {[%clk 0:00:44.2]} 38... axb4 {[%clk
0:01:16.2]} 39. cxb4 {[%clk 0:00:44.1]} 39... Rdc8 {[%clk 0:01:12.8]} 40. b5
{[%clk 0:00:40.6]} 40... Rc4 {[%clk 0:01:08.5]} 41. Qb3 {[%clk 0:00:35.2]} 41...
Rd4 {[%clk 0:00:59.3]} 42. Rb2 {[%clk 0:00:21.8]} 42... e4 {[%clk 0:00:55.2]}
43. Ne3 {[%clk 0:00:20.5]} 43... Qxb3 {[%clk 0:00:53.1]} 44. Rxb3 {[%clk
0:00:21.4]} 44... Rxa4 {[%clk 0:00:53.7]} 45. Nd5 {[%clk 0:00:17.6]} 45... Bd4
{[%clk 0:00:45]} 46. Ne7+ {[%clk 0:00:16]} 46... Kg7 {[%clk 0:00:41.5]} 47. Nc6
{[%clk 0:00:16]} 47... Rb6 {[%clk 0:00:40.4]} 48. Nxd4 {[%clk 0:00:15.5]} 48...
Rxd4 {[%clk 0:00:40.4]} 49. Bf1 {[%clk 0:00:16.2]} 49... Rd1 {[%clk 0:00:38.4]}
50. Kg2 {[%clk 0:00:15.9]} 50... d5 {[%clk 0:00:38.7]} 51. Rc3 {[%clk
0:00:14.2]} 51... d4 {[%clk 0:00:36.8]} 52. Rc4 {[%clk 0:00:13.3]} 52... d3
{[%clk 0:00:36.5]} 53. Rxe4 {[%clk 0:00:12.4]} 53... Rxb5 {[%clk 0:00:36.7]} 54.
Rd4 {[%clk 0:00:12.1]} 54... Rb3 {[%clk 0:00:31.8]} 55. g4 {[%clk 0:00:12.1]}
55... d2 {[%clk 0:00:30.9]} 56. Be2 {[%clk 0:00:12.2]} 56... Rdb1 {[%clk
0:00:26.3]} 57. Rxd2 {[%clk 0:00:11.9]} 57... R1b2 {[%clk 0:00:26.9]} 58. Rxb2
{[%clk 0:00:11.2]} 58... Rxb2 {[%clk 0:00:27.8]} 59. Bd3 {[%clk 0:00:11.2]}
59... g5 {[%clk 0:00:26.2]} 60. Bf5 {[%clk 0:00:10.7]} 60... h6 {[%clk
0:00:25.2]} 61. Kg3 {[%clk 0:00:10.4]} 61... Kf6 {[%clk 0:00:24.8]} 62. Kg2
{[%clk 0:00:09.4]} 62... Ke5 {[%clk 0:00:24.9]} 63. Bh7 {[%clk 0:00:08.9]} 63...
Kf4 {[%clk 0:00:24.6]} 64. Bd3 {[%clk 0:00:08.1]} 64... Rd2 {[%clk 0:00:24.4]}
65. Bf5 {[%clk 0:00:08]} 65... h5 {[%clk 0:00:24.1]} 66. Bc8 {[%clk 0:00:05.8]}
66... Rd8 {[%clk 0:00:23.3]} 67. Bf5 {[%clk 0:00:05.4]} 67... Rd1 {[%clk
0:00:19.5]} 68. Bc2 {[%clk 0:00:04.2]} 68... Rc1 {[%clk 0:00:19.3]} 69. Bf5
{[%clk 0:00:04]} 69... Rc7 {[%clk 0:00:19.6]} 70. Kg1 {[%clk 0:00:03]} 70... Kf3
{[%clk 0:00:13.8]} 71. gxh5 {[%clk 0:00:02.7]} 71... Rc1+ {[%clk 0:00:13.5]} 72.
Kh2 {[%clk 0:00:02.8]} 72... Kxf2 {[%clk 0:00:14]} 73. h6 {[%clk 0:00:02.8]}
73... Ra1 {[%clk 0:00:10.4]} 74. h7 {[%clk 0:00:02.6]} 74... Ra8 {[%clk
0:00:10.7]} 75. h4 {[%clk 0:00:02.1]} 75... gxh4 {[%clk 0:00:08.9]} 76. Kh3
{[%clk 0:00:03]} 76... Kf3 {[%clk 0:00:09.8]} 77. Kxh4 {[%clk 0:00:03.1]} 77...
Kf4 {[%clk 0:00:10.7]} 78. Bd3 {[%clk 0:00:02.1]} 78... Rh8 {[%clk 0:00:09.2]}
79. Kh5 {[%clk 0:00:02]} 79... Ke5 {[%clk 0:00:07]} 80. Kh6 {[%clk 0:00:02.3]}
80... Kf6 {[%clk 0:00:07.1]} 81. Be4 {[%clk 0:00:02.2]} 81... Re8 {[%clk
0:00:07.2]} 82. Bd3 {[%clk 0:00:02.3]} 82... Rd8 {[%clk 0:00:07.4]} 83. Bc4
{[%clk 0:00:01.9]} 83... Rc8 {[%clk 0:00:05.4]} 84. Bd3 {[%clk 0:00:02]} 84...
Ke7 {[%clk 0:00:04.1]} 85. Kg7 {[%clk 0:00:01.4]} 85... Rc3 {[%clk 0:00:03.7]}
86. h8=Q {[%clk 0:00:01.6]} 86... Rxd3 {[%clk 0:00:04.6]} 87. Qh4+ {[%clk
0:00:01.8]} 87... Kd6 {[%clk 0:00:05.5]} 88. Qf4+ {[%clk 0:00:02.1]} 88... Kc6
{[%clk 0:00:06]} 89. Qxf7 {[%clk 0:00:02.3]} 89... Rd7 {[%clk 0:00:06.9]} 90.
Kh6 {[%clk 0:00:03]} 90... Rxf7 {[%clk 0:00:07]} 91. Kg6 {[%clk 0:00:03.9]}
91... Rd7 {[%clk 0:00:07.9]} 0-1

[Event "Late-Titled-Tuesday-Blitz-April-30-2024"]
[Site "Chess.com"]
[Date "2024.04.30"]
[Round "11"]
[White "el008"]
[Black "Charodej1"]
[Result "1/2-1/2"]
[WhiteElo "2523"]
[BlackElo "2421"]
[TimeControl "180+1"]
[EndTime "16:07:35 PDT"]
[Termination "Game drawn by agreement"]

1. b3 {[%clk 0:03:00.9]} 1... e6 {[%clk 0:02:54.3]} 2. Bb2 {[%clk 0:03:01.8]}
2... a5 {[%clk 0:02:53.4]} 3. a4 {[%clk 0:03:01.4]} 3... Nf6 {[%clk 0:02:49.5]}
4. Nf3 {[%clk 0:03:01.6]} 4... Be7 {[%clk 0:02:49.7]} 5. g3 {[%clk 0:03:02]}
5... O-O {[%clk 0:02:50.3]} 6. Bg2 {[%clk 0:03:02.6]} 6... d5 {[%clk 0:02:50.5]}
7. O-O {[%clk 0:03:03.3]} 7... Nbd7 {[%clk 0:02:49.4]} 8. d3 {[%clk 0:03:03.8]}
8... c6 {[%clk 0:02:49.6]} 9. Nbd2 {[%clk 0:03:04.5]} 9... b6 {[%clk 0:02:48.4]}
10. e4 {[%clk 0:03:05]} 10... Bb7 {[%clk 0:02:48]} 11. Re1 {[%clk 0:03:03.2]}
11... b5 {[%clk 0:02:33.5]} 12. e5 {[%clk 0:03:00.9]} 12... Ne8 {[%clk
0:02:33.3]} 13. h4 {[%clk 0:03:01.3]} 13... bxa4 {[%clk 0:02:28.4]} 14. Rxa4
{[%clk 0:03:01]} 14... Nb6 {[%clk 0:02:26.7]} 15. Rf4 {[%clk 0:02:51.6]} 15...
a4 {[%clk 0:02:26.4]} 16. bxa4 {[%clk 0:02:49.3]} 16... Nxa4 {[%clk 0:02:24.8]}
17. Ba1 {[%clk 0:02:49.8]} 17... Nc7 {[%clk 0:02:20.6]} 18. h5 {[%clk 0:02:50]}
18... h6 {[%clk 0:02:18.7]} 19. Nf1 {[%clk 0:02:47.5]} 19... Nb5 {[%clk
0:02:12]} 20. N3h2 {[%clk 0:02:10.1]} 20... Nac3 {[%clk 0:02:01.7]} 21. Qg4
{[%clk 0:02:09.8]} 21... c5 {[%clk 0:01:53]} 22. Qf3 {[%clk 0:01:58.5]} 22...
Nd4 {[%clk 0:01:48.8]} 23. Qg4 {[%clk 0:01:58.1]} 23... Rxa1 {[%clk 0:01:41.2]}
24. Rxa1 {[%clk 0:01:57.3]} 24... Nce2+ {[%clk 0:01:38]} 25. Kh1 {[%clk
0:01:57.7]} 25... Nxf4 {[%clk 0:01:38.4]} 26. Qxf4 {[%clk 0:01:58.3]} 26... Nxc2
{[%clk 0:01:36.5]} 27. Rb1 {[%clk 0:01:53.8]} 27... Bc6 {[%clk 0:01:35.6]} 28.
Qd2 {[%clk 0:01:50.7]} 28... Nd4 {[%clk 0:01:34.7]} 29. Ng4 {[%clk 0:01:51.2]}
29... Kh7 {[%clk 0:01:30.6]} 30. Qa2 {[%clk 0:01:47]} 30... Qa8 {[%clk
0:01:27.2]} 31. Qb2 {[%clk 0:01:46.4]} 31... Qa6 {[%clk 0:01:15.8]} 32. Qc3
{[%clk 0:01:42.5]} 32... Ra8 {[%clk 0:01:13.7]} 33. Nfe3 {[%clk 0:01:37.6]}
33... Qa3 {[%clk 0:01:12.2]} 34. Qd2 {[%clk 0:01:32.5]} 34... Qa2 {[%clk
0:01:08.9]} 35. Rb2 {[%clk 0:01:32.3]} 35... Qa1+ {[%clk 0:01:08.5]} 36. Kh2
{[%clk 0:01:32.7]} 36... Qa5 {[%clk 0:01:01.7]} 37. Qd1 {[%clk 0:01:32.4]} 37...
Ba4 {[%clk 0:01:00]} 38. Qb1 {[%clk 0:01:31.8]} 38... Bc6 {[%clk 0:00:56.9]} 39.
Rb6 {[%clk 0:01:28]} 39... Qa2 {[%clk 0:00:54.6]} 40. Qc1 {[%clk 0:01:18.9]}
40... Qa1 {[%clk 0:00:53.4]} 41. Rb1 {[%clk 0:01:18]} 41... Qa3 {[%clk 0:00:54]}
42. Qd1 {[%clk 0:01:17.8]} 42... Bb5 {[%clk 0:00:52.8]} 43. Bf1 {[%clk
0:01:14.5]} 43... Ra5 {[%clk 0:00:45.1]} 44. Kh3 {[%clk 0:01:10.9]} 44... Bd8
{[%clk 0:00:40.8]} 45. Nh2 {[%clk 0:01:05.2]} 45... Bc7 {[%clk 0:00:40.5]} 46.
Nf3 {[%clk 0:01:04.8]} 46... Nc6 {[%clk 0:00:34.1]} 47. d4 {[%clk 0:00:58.4]}
47... Bxf1+ {[%clk 0:00:33.7]} 48. Nxf1 {[%clk 0:00:56.1]} 48... cxd4 {[%clk
0:00:27.1]} 49. Nxd4 {[%clk 0:00:57]} 49... Nxd4 {[%clk 0:00:27.3]} 50. Qxd4
{[%clk 0:00:57.9]} 50... Ra4 {[%clk 0:00:22.9]} 51. Qd1 {[%clk 0:00:48.1]} 51...
Bxe5 {[%clk 0:00:21.9]} 52. Rb7 {[%clk 0:00:48.4]} 52... Ra7 {[%clk 0:00:19.5]}
53. Rb3 {[%clk 0:00:47.6]} 53... Qa1 {[%clk 0:00:18.6]} 54. Qd3+ {[%clk
0:00:47.4]} 54... g6 {[%clk 0:00:18.7]} 55. hxg6+ {[%clk 0:00:47.3]} 55... fxg6
{[%clk 0:00:19.6]} 56. Rb6 {[%clk 0:00:45.1]} 56... Qd4 {[%clk 0:00:18.3]} 57.
Qxd4 {[%clk 0:00:43.2]} 57... Bxd4 {[%clk 0:00:19.2]} 58. Rxe6 {[%clk 0:00:43]}
58... Bxf2 {[%clk 0:00:19.9]} 59. Kg2 {[%clk 0:00:43.6]} 59... Bc5 {[%clk
0:00:18.7]} 60. Rc6 {[%clk 0:00:43.9]} 60... Ba3 {[%clk 0:00:17.7]} 61. Ne3
{[%clk 0:00:39.2]} 61... d4 {[%clk 0:00:17.9]} 62. Nc4 {[%clk 0:00:35.5]} 62...
d3 {[%clk 0:00:18]} 63. Kf1 {[%clk 0:00:31.9]} 63... Be7 {[%clk 0:00:16.7]} 64.
Ke1 {[%clk 0:00:30.5]} 64... Kg7 {[%clk 0:00:16.4]} 65. Kd2 {[%clk 0:00:30.7]}
65... Rd7 {[%clk 0:00:12.9]} 66. Ne5 {[%clk 0:00:31.1]} 66... Rd6 {[%clk
0:00:13.3]} 67. Rc7 {[%clk 0:00:30.6]} 67... Kf6 {[%clk 0:00:13.5]} 68. Nxd3
{[%clk 0:00:31.2]} 68... Rd8 {[%clk 0:00:11.4]} 69. Rc6+ {[%clk 0:00:31]} 69...
Rd6 {[%clk 0:00:11]} 70. Rc1 {[%clk 0:00:31.5]} 70... Rd8 {[%clk 0:00:11.2]} 71.
Rf1+ {[%clk 0:00:31.7]} 71... Kg7 {[%clk 0:00:11.5]} 72. Ke2 {[%clk 0:00:32.6]}
72... Bd6 {[%clk 0:00:11.6]} 73. g4 {[%clk 0:00:32.4]} 73... h5 {[%clk
0:00:11.5]} 74. gxh5 {[%clk 0:00:33.3]} 74... gxh5 {[%clk 0:00:12.4]} 75. Rf5
{[%clk 0:00:33.7]} 75... h4 {[%clk 0:00:12.2]} 76. Rh5 {[%clk 0:00:33.9]} 76...
Bg3 {[%clk 0:00:12.7]} 77. Rg5+ {[%clk 0:00:30]} 77... Kf6 {[%clk 0:00:12.7]}
78. Ra5 {[%clk 0:00:27.9]} 78... Re8+ {[%clk 0:00:12.4]} 79. Kf3 {[%clk
0:00:27.7]} 79... Rf8 {[%clk 0:00:12.5]} 80. Kg2 {[%clk 0:00:26.8]} 80... Ke6
{[%clk 0:00:12.7]} 81. Nc5+ {[%clk 0:00:26.6]} 81... Kd6 {[%clk 0:00:12.1]} 82.
Ne4+ {[%clk 0:00:26.5]} 82... Kc6 {[%clk 0:00:12.6]} 83. Rc5+ {[%clk 0:00:20]}
83... Kb6 {[%clk 0:00:12.6]} 84. Rh5 {[%clk 0:00:19.8]} 84... Rg8 {[%clk
0:00:11.4]} 85. Kh3 {[%clk 0:00:18.1]} 85... Kc6 {[%clk 0:00:09.5]} 86. Rc5+
{[%clk 0:00:18]} 86... Kb6 {[%clk 0:00:09.7]} 87. Rc4 {[%clk 0:00:18.6]} 87...
Kb5 {[%clk 0:00:09.9]} 88. Rc2 {[%clk 0:00:18.9]} 88... Kb4 {[%clk 0:00:10.3]}
89. Nf6 {[%clk 0:00:18.6]} 89... Rg6 {[%clk 0:00:09.9]} 90. Nd5+ {[%clk
0:00:19.1]} 90... Kb5 {[%clk 0:00:10.1]} 91. Ne7 {[%clk 0:00:17.9]} 91... Re6
{[%clk 0:00:09]} 92. Nf5 {[%clk 0:00:17.2]} 92... Re4 {[%clk 0:00:07.2]} 93. Rc8
{[%clk 0:00:14.7]} 93... Rc4 {[%clk 0:00:06.3]} 94. Re8 {[%clk 0:00:11.4]} 94...
Rc5 {[%clk 0:00:05]} 95. Nd4+ {[%clk 0:00:11.4]} 95... Kc4 {[%clk 0:00:05.4]}
96. Ne6 {[%clk 0:00:11.7]} 96... Re5 {[%clk 0:00:05.5]} 97. Rc8+ {[%clk
0:00:11.3]} 97... Kd5 {[%clk 0:00:05.4]} 98. Nf8 {[%clk 0:00:11.5]} 98... Re3
{[%clk 0:00:04.6]} 99. Ng6 {[%clk 0:00:11.7]} 99... Ke4 {[%clk 0:00:04.9]} 100.
Re8+ {[%clk 0:00:08.1]} 100... Kd3 {[%clk 0:00:05.5]} 101. Rxe3+ {[%clk
0:00:06.6]} 101... Kxe3 {[%clk 0:00:06.4]} 102. Ne7 {[%clk 0:00:07.2]} 102...
Kf2 {[%clk 0:00:06.6]} 103. Nf5 {[%clk 0:00:06.2]} 103... Ke2 {[%clk 0:00:06.8]}
104. Nd4+ {[%clk 0:00:06.1]} 104... Kd3 {[%clk 0:00:07.7]} 105. Nc6 {[%clk
0:00:06.5]} 105... Kc2 {[%clk 0:00:08.6]} 106. Nd8 {[%clk 0:00:07]} 106... Kb3
{[%clk 0:00:09.4]} 107. Nf7 {[%clk 0:00:07.1]} 107... Kc4 {[%clk 0:00:10.3]}
108. Ng5 {[%clk 0:00:07.4]} 108... Kb5 {[%clk 0:00:11.2]} 109. Ne4 {[%clk
0:00:07.7]} 109... Ka5 {[%clk 0:00:12.1]} 110. Nd2 {[%clk 0:00:08]} 110... Ka4
{[%clk 0:00:12.7]} 111. Ne4 {[%clk 0:00:08.3]} 111... Ka5 {[%clk 0:00:13.6]}
112. Nf6 {[%clk 0:00:09.2]} 112... Kb4 {[%clk 0:00:14.1]} 113. Ne8 {[%clk
0:00:10.1]} 113... Kb3 {[%clk 0:00:14.9]} 114. Ng7 {[%clk 0:00:11]} 114... Kb2
{[%clk 0:00:15.7]} 115. Ne6 {[%clk 0:00:11.6]} 115... Kb1 {[%clk 0:00:16.6]}
116. Nd4 {[%clk 0:00:12.3]} 116... Kb2 {[%clk 0:00:17.5]} 117. Nc6 {[%clk
0:00:13.2]} 117... Kb3 {[%clk 0:00:18.4]} 118. Ne7 {[%clk 0:00:14.1]} 118... Kb4
{[%clk 0:00:19.1]} 119. Nf5 {[%clk 0:00:15]} 119... Kc5 {[%clk 0:00:19.8]} 120.
Nxg3 {[%clk 0:00:15.9]} 120... Kc6 {[%clk 0:00:20.6]} 121. Nf5 {[%clk
0:00:16.8]} 121... Kc7 {[%clk 0:00:21.4]} 122. Ne3 {[%clk 0:00:17.3]} 122... Kb6
{[%clk 0:00:22.3]} 123. Nf1 {[%clk 0:00:18.2]} 123... Kb5 {[%clk 0:00:23.2]}
124. Nh2 {[%clk 0:00:18.9]} 124... Kb4 {[%clk 0:00:24.1]} 125. Nf3 {[%clk
0:00:19.6]} 125... Kc5 {[%clk 0:00:25]} 126. Ng5 {[%clk 0:00:20.3]} 126... Kb6
{[%clk 0:00:25.9]} 127. Nf7 {[%clk 0:00:21.2]} 127... Kc7 {[%clk 0:00:26.7]}
128. Nh8 {[%clk 0:00:22.1]} 128... Kb7 {[%clk 0:00:27.6]} 129. Ng6 {[%clk
0:00:23]} 129... Kb6 {[%clk 0:00:28.4]} 130. Nf8 {[%clk 0:00:23.9]} 130... Kb5
{[%clk 0:00:29.3]} 131. Ne6 {[%clk 0:00:24.8]} 131... Kb4 {[%clk 0:00:30.2]}
132. Nf4 {[%clk 0:00:25.7]} 132... Kb3 {[%clk 0:00:31.1]} 133. Nd3 {[%clk
0:00:26.6]} 133... Ka2 {[%clk 0:00:31.1]} 134. Nf2 {[%clk 0:00:27.5]} 134... Ka3
{[%clk 0:00:32]} 135. Ng4 {[%clk 0:00:28.4]} 135... Ka4 {[%clk 0:00:32.9]} 136.
Nf6 {[%clk 0:00:29.3]} 136... Ka5 {[%clk 0:00:33.8]} 137. Nd7 {[%clk 0:00:30.2]}
137... Ka6 {[%clk 0:00:34.2]} 138. Nb8+ {[%clk 0:00:31.1]} 138... Kb5 {[%clk
0:00:35.1]} 139. Nd7 {[%clk 0:00:31.9]} 139... Kc4 {[%clk 0:00:36]} 140. Nf8
{[%clk 0:00:32.8]} 140... Kb3 {[%clk 0:00:36.8]} 141. Ng6 {[%clk 0:00:33.7]}
141... Kb2 {[%clk 0:00:37.6]} 142. Nf4 {[%clk 0:00:34.6]} 142... Kb1 {[%clk
0:00:38.5]} 143. Kh2 {[%clk 0:00:35.5]} 143... Kb2 {[%clk 0:00:39.4]} 144. Ng2
{[%clk 0:00:36.2]} 144... Ka2 {[%clk 0:00:40.3]} 145. Kh3 {[%clk 0:00:37]}
145... Ka3 {[%clk 0:00:41.2]} 146. Nf4 {[%clk 0:00:37.7]} 146... Kb4 {[%clk
0:00:42.1]} 147. Kh2 {[%clk 0:00:38.5]} 147... Kb5 {[%clk 0:00:43]} 148. Nh3
{[%clk 0:00:38.8]} 148... Kb6 {[%clk 0:00:43.9]} 149. Kg2 {[%clk 0:00:39.7]}
149... Kc7 {[%clk 0:00:44.8]} 150. Kf3 {[%clk 0:00:40.6]} 150... Kb7 {[%clk
0:00:45.7]} 151. Kg4 {[%clk 0:00:41.5]} 151... Ka6 {[%clk 0:00:46.2]} 152. Kf4
{[%clk 0:00:42.4]} 152... Kb5 {[%clk 0:00:47]} 153. Kf3 {[%clk 0:00:43.3]}
153... Kb4 {[%clk 0:00:47.6]} 154. Ke3 {[%clk 0:00:44.2]} 154... Kb3 {[%clk
0:00:48.4]} 155. Ke2 {[%clk 0:00:45.1]} 155... Kb2 {[%clk 0:00:49.2]} 156. Kf2
{[%clk 0:00:46]} 156... Ka3 {[%clk 0:00:50]} 157. Kg2 {[%clk 0:00:46.9]} 157...
Ka4 {[%clk 0:00:50.8]} 158. Ng1 {[%clk 0:00:47.8]} 158... Ka5 {[%clk 0:00:51.7]}
159. Kh2 {[%clk 0:00:48.7]} 159... Ka6 {[%clk 0:00:52.4]} 160. Nf3 {[%clk
0:00:49.6]} 160... Ka7 {[%clk 0:00:53.3]} 161. Ng5 {[%clk 0:00:50.5]} 161... Ka8
{[%clk 0:00:54.1]} 162. Nf7 {[%clk 0:00:51.4]} 162... Kb7 {[%clk 0:00:53.4]}
163. Nh8 {[%clk 0:00:52.3]} 163... Kb6 {[%clk 0:00:53.6]} 164. Ng6 {[%clk
0:00:53.2]} 164... Kb5 {[%clk 0:00:54]} 165. Nf8 {[%clk 0:00:54.1]} 165... Kb4
{[%clk 0:00:54.5]} 166. Nh7 {[%clk 0:00:55]} 166... Kb3 {[%clk 0:00:54.9]} 167.
Nf6 {[%clk 0:00:53.2]} 167... Kb2 {[%clk 0:00:55.3]} 1/2-1/2